bitfinex-derivatives/quotes_ETHF0:USTF0_20250727
["timestamp","ask_amount","ask_price","bid_price","bid_amount"]
[1753653742228,22.6226,3843.5,3843.4,2.26552]
[1753653742422,25.8304,3843.5,3843.4,2.26552]
[1753653742727,26.1258,3843.5,3843.4,2.26552]
[1753653742924,26.1258,3843.5,3843.4,0.52022]
[1753653742925,26.646,3843.5,3843.4,0.52022]
[1753653743926,26.646,3843.5,3843.4,1.30802]
[1753653744626,26.646,3843.5,3843.4,1.00242]
[1753653744824,27.22371288,3843.5,3843.4,1.20412]
[1753653745023,27.22371288,3843.5,3843.4,2.26552]
[1753653745223,27.22371288,3843.5,3843.4,0.52022]
[1753653745428,27.22371288,3843.5,3843.4,0.80022]
[1753653747128,26.70351288,3843.5,3843.4,0.80022]
[1753653747730,3.78551288,3843.5,3843.4,2.26552]
[1753653747932,24.90451288,3843.5,3843.4,2.26552]
[1753653748929,21.69671288,3843.5,3843.4,2.26552]
[1753653749128,21.69371288,3843.5,3843.4,2.26552]
[1753653749421,21.69271288,3843.5,3843.4,2.26552]
[1753653749821,3.78551288,3843.6,3843.5,1.5249]
[1753653750021,3.78551288,3843.6,3843.5,2.2718]
[1753653750022,24.90051288,3843.6,3843.5,2.2718]
[1753653750226,3.78551288,3843.6,3843.5,2.2718]
[1753653750533,24.89851288,3843.6,3843.5,2.2718]
[1753653751026,3.2078,3843.6,3843.5,2.2718]
[1753653751234,0.2,3843.9,3843.8,1.21806]
[1753653751531,21.31,3843.9,3843.8,2.27176]
[1753653751935,0.2,3843.9,3843.8,2.27176]
[1753653752232,21.308,3843.9,3843.8,2.27176]
[1753653752824,26.2525,3843.9,3843.8,0.3068]
[1753653753029,1.7367,3843.6,3843.5,0.8196]
[1753653753227,23.93560288,3843.6,3843.5,1.0174]
[1753653753429,23.93560288,3843.6,3842.7,2.60156]
[1753653753430,0.5042,3842.5,3842.4,3.53247611]
[1753653753630,0.5042,3842.5,3841.4,6.08521162]
[1753653753631,0.4333,3842.1,3841.4,5.52202611]
[1753653753824,2.31441288,3841.5,3841.4,0.1978]
[1753653754026,0.6955,3841.1,3841.0,1.21844]
[1753653754231,23.98194288,3841.1,3841.0,0.6979]
[1753653754425,0.2017,3840.4,3840.3,0.1978]
[1753653754724,2.25734,3840.3,3840.2,0.01822798]
[1753653754925,2.25734,3840.3,3839.1,3.2078]
[1753653754926,2.25739,3839.9,3839.8,0.68101586]
[1753653755129,26.68221288,3839.9,3839.8,1.20172586]
[1753653755329,26.68221288,3839.9,3839.8,0.19271586]
[1753653755530,27.20290288,3839.9,3839.8,0.19271586]
[1753653755729,3.2078,3839.9,3839.8,2.46502586]
[1753653755932,2.31441288,3840.3,3840.2,2.27225]
[1753653756232,3.2078,3840.5,3840.4,2.27222]
[1753653756534,3.2078,3840.5,3840.4,1.57432]
[1753653756535,21.165,3840.5,3840.4,1.57432]
[1753653756736,20.388,3840.5,3840.4,9.78212]
[1753653756939,20.6905,3840.5,3840.4,4.47532]
[1753653757238,1.0412,3840.4,3840.3,0.52064]
[1753653757538,37.7765,3841.1,3841.0,1.12274]
[1753653757738,3.2078,3842.2,3841.6,0.1172]
[1753653758040,3.2078,3842.5,3842.4,0.52035]
[1753653758237,25.444,3842.5,3841.7,3.2078]
[1753653758431,24.4028,3842.5,3841.8,0.3028]
[1753653758631,24.4028,3842.5,3841.4,0.3028]
[1753653758632,3.2078,3842.1,3841.4,0.3028]
[1753653758830,0.7358,3841.8,3841.4,0.3028]
[1753653759028,3.2078,3842.1,3841.1,0.2994]
[1753653759029,0.3025,3842.1,3842.0,1.26731]
[1753653759245,0.3025,3843.1,3842.6,0.4475]
[1753653759431,3.2078,3843.5,3843.2,0.7469]
[1753653759432,0.3205,3843.3,3843.2,0.7469]
[1753653759743,0.3025,3843.2,3842.8,0.52029]
[1753653759939,0.3025,3842.9,3841.8,3.2078]
[1753653760134,0.3025,3842.9,3842.3,0.8641]
[1753653760438,0.018,3843.3,3843.2,1.38434]
[1753653760635,21.273,3843.3,3843.2,1.38434]
[1753653760838,0.3205,3843.3,3843.2,1.26714]
[1753653761040,22.3222,3843.3,3842.8,0.7469]
[1753653761240,0.018,3843.3,3843.2,1.38434]
[1753653761440,3.2078,3844.1,3843.8,0.2994]
[1753653761745,21.468,3843.9,3843.8,1.36626]
[1753653762935,21.468,3843.9,3843.8,0.8461]
[1753653763240,22.5092,3843.9,3843.8,1.26706]
[1753653764238,0.5025,3843.9,3843.8,1.26706]
[1753653764442,0.2,3843.9,3843.8,1.36626]
[1753653764852,0.3025,3844.6,3844.5,0.52007]
[1753653765054,3.5103,3845.0,3844.5,1.26017]
[1753653765345,21.5555,3844.8,3844.7,0.52003]
[1753653765543,22.20634,3844.8,3844.7,0.6409]
[1753653765743,22.20634,3844.8,3844.1,0.2994]
[1753653765744,0.52009,3844.4,3844.1,0.2994]
[1753653765943,0.3025,3844.7,3844.3,0.0992]
[1753653766142,0.3025,3844.7,3844.6,0.86095]
[1753653766342,21.5675,3844.7,3844.6,1.16035]
[1753653766752,21.78505,3844.7,3844.1,0.6403]
[1753653766945,0.3025,3844.7,3844.6,1.16035]
[1753653767150,21.5645,3844.7,3844.6,1.16035]
[1753653767449,21.5635,3844.7,3844.6,1.16035]
[1753653767644,0.3025,3844.7,3844.6,1.16035]
[1753653767847,21.261,3844.7,3844.6,1.25955]
[1753653768149,22.82024,3844.7,3844.6,0.2994]
[1753653768450,21.259,3844.7,3844.6,1.16035]
[1753653768839,41.1261,3844.9,3844.6,0.52004]
[1753653769040,0.3025,3844.8,3844.2,0.0992]
[1753653769241,1.0412,3844.6,3843.8,0.0992]
[1753653769445,0.4333,3844.4,3843.9,0.6403]
[1753653769644,0.3025,3844.6,3844.4,0.6403]
[1753653769843,21.269,3844.5,3844.4,0.81948]
[1753653770049,22.3102,3844.5,3843.9,0.2994]
[1753653770246,0.9534,3844.3,3844.2,0.2994]
[1753653770545,24.7843,3844.3,3844.2,1.16041]
[1753653770746,24.4818,3844.3,3843.3,0.0992]
[1753653770944,0.3025,3843.9,3843.8,0.86106]
[1753653771143,21.5835,3843.9,3843.8,0.3409]
[1753653771343,22.0168,3843.9,3843.8,1.16046]
[1753653771541,0.3025,3844.2,3843.9,0.3409]
[1753653771747,0.00479099,3844.6,3844.1,0.0992]
[1753653771944,3.5103,3844.4,3844.3,0.52009]
[1753653772146,3.9436,3844.4,3844.3,0.2994]
[1753653772343,0.4333,3844.2,3843.8,0.6403]
[1753653772653,0.3025,3844.0,3843.9,1.16045]
[1753653773343,21.5925,3844.0,3843.9,1.16045]
[1753653773547,22.3312,3844.0,3843.5,0.6403]
[1753653773746,21.294,3843.9,3843.8,1.25966]
[1753653773946,21.5965,3843.9,3843.8,1.16046]
[1753653774146,0.52022,3843.4,3843.3,0.6403]
[1753653774351,1.0412,3843.3,3843.2,0.52024]
[1753653774540,1.56143,3843.3,3843.2,0.52024]
[1753653774740,37.47,3843.5,3843.4,1.16052]
[1753653774946,59.8132,3843.5,3843.4,1.16052]
[1753653775147,1.0412,3843.4,3843.0,0.6403]
[1753653775451,0.52022,3843.4,3843.3,0.52023]
[1753653775948,1.0412,3843.3,3842.6,0.2994]
[1753653776154,0.52028,3843.0,3842.9,0.52028]
[1753653776546,1.56147,3843.1,3843.0,0.52026]
[1753653776747,1.0412,3843.1,3843.0,0.52026]
[1753653777151,21.6095,3843.1,3843.0,1.16056]
[1753653777344,4.46669,3843.6,3843.5,0.5202]
[1753653777553,63.23969,3843.6,3843.5,1.1605]
[1753653777746,41.4165,3843.6,3843.5,1.1605]
[1753653778049,41.4104,3843.6,3843.5,1.1605]
[1753653778249,59.5066,3843.6,3843.5,1.1605]
[1753653778554,62.7144,3843.6,3843.5,1.1605]
[1753653778944,63.0512,3843.6,3843.5,0.5202]
[1753653779146,41.7472,3843.6,3843.5,1.1896]
[1753653779344,0.52026,3843.1,3843.0,3.5494]
[1753653779547,0.52026,3843.1,3841.9,2.60208]
[1753653779548,1.0574,3842.8,3842.7,0.52031]
[1753653779850,0.7581,3843.4,3843.1,0.6694]
[1753653780054,0.52029,3842.9,3842.4,1.30089]
[1753653780253,0.3368,3842.8,3842.4,1.30089]
[1753653780456,21.6133,3842.7,3842.6,1.18973]
[1753653780852,0.3368,3842.5,3842.3,0.3278]
[1753653781054,0.52033,3842.6,3842.4,0.52035]
[1753653781255,21.316,3842.5,3842.4,0.3416]
[1753653781455,0.2993,3842.8,3842.7,0.3416]
[1753653781660,21.6413,3842.8,3842.7,0.86191]
[1753653781853,21.6413,3842.8,3842.7,1.18971]
[1753653782058,0.2993,3842.8,3842.7,1.18971]
[1753653782455,0.7206,3842.8,3842.7,1.18971]
[1753653782656,21.6413,3842.8,3842.7,1.18971]
[1753653783759,0.2993,3842.8,3842.7,1.18971]
[1753653783956,21.6423,3842.8,3842.7,1.18971]
[1753653784360,3.5071,3843.5,3842.8,0.0993]
[1753653784563,0.2993,3843.5,3843.4,0.84802]
[1753653784857,15.5864,3843.5,3843.4,0.84802]
[1753653785161,1.0574,3843.5,3843.4,0.52022]
[1753653785349,22.0666,3843.5,3843.4,1.18962]
[1753653785553,0.3368,3843.9,3843.8,0.52016]
[1753653785554,0.2993,3843.9,3843.8,0.52016]
[1753653785756,0.2993,3844.2,3844.1,0.52012]
[1753653785957,0.3368,3843.9,3843.8,0.6694]
[1753653786153,0.6361,3843.9,3843.8,1.18956]
[1753653786354,21.369,3843.9,3843.8,0.0993]
[1753653786561,0.2993,3844.2,3844.1,0.86172]
[1753653786760,22.4264,3844.2,3844.1,0.52012]
[1753653787151,25.6342,3844.2,3843.8,0.3278]
[1753653787351,1.0574,3843.9,3843.4,0.3278]
[1753653787553,0.7206,3843.6,3843.0,0.6694]
[1753653787755,0.7581,3843.4,3842.9,3.5494]
[1753653787957,21.394,3843.5,3843.0,0.3278]
[1753653788158,0.2993,3843.2,3843.1,0.52026]
[1753653788357,0.2993,3843.2,3843.1,0.84806]
[1753653788751,1.0574,3843.2,3843.1,0.84806]
[1753653788958,4.2652,3843.2,3843.1,0.52026]
[1753653789158,1.0574,3843.2,3843.1,0.52026]
[1753653789557,1.0574,3843.2,3843.1,0.84806]
[1753653789755,0.2993,3843.2,3843.1,1.18966]
[1753653790359,0.4213,3843.5,3843.4,0.52022]
[1753653790664,0.2993,3843.5,3843.4,1.18962]
[1753653790967,21.383,3843.5,3843.4,1.28892]
[1753653791263,21.6823,3843.5,3843.4,1.28892]
[1753653791762,21.6823,3843.5,3843.4,1.18962]
[1753653792866,21.6823,3843.5,3843.4,1.84802]
[1753653793465,0.4874,3843.9,3843.8,1.84796]
[1753653793659,1.1255,3844.3,3844.2,1.50631]
[1753653793967,22.8283,3844.3,3844.2,0.52011]
[1753653794271,1.7616,3844.3,3844.2,1.84791]
[1753653794466,23.1246,3844.3,3844.2,1.84791]
[1753653794668,21.8504,3844.3,3844.2,1.84791]
[1753653795061,0.4874,3844.3,3844.2,1.84791]
[1753653795361,21.8484,3844.3,3844.2,1.84791]
[1753653796066,21.6543,3844.3,3844.2,1.84791]
[1753653796267,21.6523,3844.3,3844.2,1.84791]
[1753653796464,21.6523,3844.3,3844.2,0.52011]
[1753653796465,26.3224,3844.3,3844.2,0.52011]
[1753653796866,26.3224,3844.3,3844.2,1.05661]
[1753653797064,26.3224,3844.3,3844.2,0.52011]
[1753653797266,25.69618366,3844.3,3843.5,1.30049]
[1753653797464,26.21628366,3844.3,3844.2,0.52011]
[1753653797662,24.5608,3844.3,3844.2,0.52011]
[1753653797861,25.6162,3844.3,3844.2,0.52011]
[1753653798069,26.1363,3844.3,3844.2,0.52011]
[1753653798868,0.6361,3844.1,3843.6,0.3278]
[1753653799065,0.52016,3843.9,3843.8,0.52015]
[1753653799258,24.5498,3843.9,3843.2,1.62839]
[1753653799464,1.0574,3843.6,3843.5,0.5202]
[1753653799668,22.4024,3843.6,3843.5,0.5202]
[1753653799869,22.92259,3843.6,3843.5,0.5202]
[1753653800073,22.4024,3843.6,3843.5,0.5202]
[1753653800464,22.92259,3843.6,3843.5,0.5202]
[1753653800660,1.0574,3843.5,3842.7,0.6694]
[1753653800866,3.2078,3843.0,3842.3,2.98362611]
[1753653801066,0.7581,3842.4,3842.0,2.31422611]
[1753653801267,21.341,3842.3,3842.2,0.52037]
[1753653801470,21.6403,3842.3,3842.2,0.52037]
[1753653801672,22.16067,3842.3,3842.2,0.52037]
[1753653801969,22.91877,3842.3,3842.2,2.31422611]
[1753653802171,22.91877,3842.3,3841.8,0.52041554]
[1753653802172,0.52038,3842.2,3842.1,2.31422611]
[1753653802363,0.52038,3842.2,3841.7,3.28781883]
[1753653802364,3.2078,3842.2,3841.7,3.28781883]
[1753653802569,1.0574,3841.1,3841.0,5.20147201]
[1753653802873,22.4174,3841.1,3841.0,6.25377201]
[1753653803071,22.4174,3841.1,3841.0,1.57284]
[1753653803072,1.0574,3841.1,3841.0,1.57284]
[1753653803265,37.472,3841.5,3841.4,0.2931]
[1753653803466,58.828,3841.5,3841.4,0.6209]
[1753653803670,37.472,3841.5,3841.4,1.14139]
[1753653803877,58.828,3841.5,3841.4,1.57279]
[1753653804776,58.822,3841.5,3841.4,1.57279]
[1753653805275,37.472,3841.5,3841.4,1.57279]
[1753653805478,0.1696,3842.1,3842.0,1.57271]
[1753653805678,21.353,3842.1,3842.0,1.0523]
[1753653805974,21.359,3842.1,3841.7,0.2931]
[1753653806273,1.13538366,3841.8,3841.4,0.6209]
[1753653806471,0.4286,3841.5,3841.4,0.81358]
[1753653806868,0.1696,3841.5,3841.4,1.57278]
[1753653807379,0.4286,3841.5,3841.4,1.57278]
[1753653807775,0.4286,3841.5,3841.4,1.14138]
[1753653807975,0.1696,3841.5,3841.4,1.59318]
[1753653808870,0.5436,3841.9,3841.8,0.81103]
[1753653809071,21.5409,3841.9,3841.8,1.62743]
[1753653809277,0.1699,3841.9,3841.8,1.62743]
[1753653809577,21.5319,3841.9,3841.8,1.62743]
[1753653809882,22.42602,3841.9,3841.8,1.62743]
[1753653810175,22.42602,3841.9,3841.8,0.6552]
[1753653810380,22.42602,3841.9,3841.8,0.2906]
[1753653810782,22.64932,3841.9,3841.8,0.2906]
[1753653811074,22.64932,3841.9,3841.8,0.81103]
[1753653811281,22.1289,3841.9,3841.8,0.81103]
[1753653811480,21.5179,3841.9,3841.8,1.62743]
[1753653812282,22.03832,3841.9,3841.8,1.62743]
[1753653812484,22.41202,3841.9,3841.8,1.62743]
[1753653812885,22.41202,3841.9,3841.8,1.17563]
[1753653813085,1.28736,3841.7,3841.6,0.52044]
[1753653813287,0.7669,3841.7,3841.6,0.52044]
[1753653813482,1.06405,3841.7,3841.6,1.62744]
[1753653813787,21.8856,3841.7,3841.6,0.81104]
[1753653814187,21.8856,3841.7,3841.6,1.17564]
[1753653814781,21.8856,3841.7,3841.6,1.62744]
[1753653814982,22.40605,3841.7,3841.6,1.62744]
[1753653815281,0.5436,3841.7,3841.6,1.62744]
[1753653815483,0.5436,3842.0,3841.9,0.6552]
[1753653815676,24.5368,3842.0,3841.4,0.3646]
[1753653815881,0.52045,3841.7,3841.6,0.52045]
[1753653816076,22.07775,3841.7,3841.6,0.52045]
[1753653816282,21.5573,3841.7,3841.6,0.81105]
[1753653816488,21.8776,3841.7,3841.6,1.17565]
[1753653816691,21.8776,3841.7,3841.6,1.62745]
[1753653817182,0.5436,3841.7,3841.6,1.62745]
[1753653817582,21.324,3841.7,3841.6,0.52046]
[1753653817776,0.5436,3842.1,3841.6,1.26526]
[1753653817982,1.2552,3842.1,3842.0,1.26521]
[1753653818183,22.5772,3842.1,3842.0,2.37221]
[1753653818379,22.5752,3842.1,3842.0,2.37221]
[1753653818985,22.5752,3842.1,3842.0,1.92041]
[1753653819493,23.09559,3842.1,3842.0,1.92041]
[1753653819983,1.2337,3841.8,3841.7,0.52043]
[1753653820183,0.7116,3841.1,3841.0,1.0354]
[1753653820387,22.0196,3841.1,3841.0,2.37234]
[1753653820583,0.2233,3841.7,3841.0,2.37234]
[1753653820584,0.3737,3842.0,3841.7,0.52045]
[1753653820789,1.77561,3842.0,3841.9,0.7803]
[1753653820987,23.09061,3842.0,3841.9,1.30072]
[1753653821294,22.1975,3842.0,3841.9,2.37222]
[1753653821495,0.7116,3842.0,3841.9,2.37222]
[1753653821786,1.2552,3842.0,3841.9,2.37222]
[1753653822092,3.2078,3842.1,3842.0,1.62741]
[1753653822487,41.20712,3842.7,3842.6,0.52033]
[1753653822699,62.73684421,3842.7,3842.6,1.62733]
[1753653822896,62.73384421,3842.7,3842.6,1.62733]
[1753653823292,41.41184421,3842.7,3842.6,1.62733]
[1753653823599,62.73484421,3842.7,3842.6,1.62733]
[1753653823792,62.0098,3842.7,3842.6,1.62733]
[1753653826002,58.802,3842.7,3842.6,1.62733]
[1753653826503,59.3456,3842.7,3842.6,1.17553]
[1753653826706,59.3456,3842.7,3842.6,1.62733]
[1753653827399,59.5689,3842.7,3842.6,0.2906]
[1753653827602,0.52035,3842.5,3842.4,0.52035]
[1753653827805,0.7669,3842.5,3842.4,0.52035]
[1753653828107,22.0699,3842.5,3842.4,0.52035]
[1753653828299,22.0699,3842.5,3842.4,0.81095]
[1753653828494,21.8466,3842.5,3842.4,0.81095]
[1753653829695,22.36694,3842.5,3842.4,0.81095]
[1753653830303,23.07854,3842.5,3842.4,0.81095]
[1753653830605,22.5582,3842.5,3842.4,1.37815]
[1753653831006,22.5582,3842.5,3842.4,1.92035]
[1753653831301,22.5582,3842.5,3842.4,2.37215]
[1753653832606,23.07854,3842.5,3842.4,1.92035]
[1753653832805,23.30264,3842.5,3842.4,0.81095]
[1753653833104,23.30264,3842.5,3842.0,0.5204]
[1753653833105,1.23381,3842.1,3842.0,0.5204]
[1753653833305,23.26451,3842.1,3842.0,0.5204]
[1753653833508,22.7441,3842.1,3842.0,0.5204]
[1753653833706,22.7441,3842.1,3842.0,0.811]
[1753653834101,22.7441,3842.1,3842.0,0.5204]
[1753653834102,23.26449,3842.1,3842.0,0.5204]
[1753653834507,1.247,3841.8,3841.7,0.81105]
[1753653834708,22.521,3841.8,3841.7,1.30075]
[1753653834909,22.521,3841.8,3841.7,2.37225]
[1753653835096,0.3626,3842.2,3841.9,1.30105]
[1753653835301,0.3626,3842.2,3842.1,2.37219]
[1753653835302,1.49378,3842.2,3842.1,2.37219]
[1753653835505,23.03538,3842.2,3842.1,2.37219]
[1753653835699,21.9966,3842.2,3841.7,0.3646]
[1753653835906,1.247,3841.8,3841.7,1.92045]
[1753653836107,22.515,3841.8,3841.7,1.92045]
[1753653836706,22.515,3841.8,3841.7,2.37225]
[1753653837505,22.1524,3841.8,3841.7,2.37225]
[1753653837807,22.5122,3841.8,3841.7,2.37225]
[1753653838298,1.4218,3842.2,3842.1,0.7366]
[1753653838502,0.97836,3841.6,3841.5,0.2046]
[1753653838697,22.5212,3841.6,3841.5,2.35637]
[1753653838905,1.78173,3841.2,3841.1,0.4982]
[1753653839108,23.27753,3841.2,3841.1,0.4982]
[1753653839307,22.757,3841.2,3841.1,2.07533]
[1753653839502,23.05372,3841.2,3841.1,2.35643]
[1753653839898,0.9014,3841.6,3841.5,0.52046]
[1753653840206,26.27348,3841.6,3841.5,0.2811]
[1753653840403,1.3144,3841.0,3840.5,0.3776]
[1753653840609,1.78178,3840.8,3840.7,0.52056]
[1753653840907,1.78178,3840.8,3840.7,1.00626]
[1753653841110,1.2612,3840.8,3840.7,1.67746]
[1753653841303,0.6467,3840.8,3840.7,2.35646]
[1753653841506,3.2078,3841.2,3841.1,2.35643]
[1753653841909,24.4898,3841.2,3841.1,2.35643]
[1753653842108,24.693,3841.2,3841.1,2.35643]
[1753653842303,21.6558,3841.2,3841.1,2.35643]
[1753653842503,0.3598,3841.9,3841.7,0.7366]
[1753653842704,26.11614672,3841.8,3841.7,1.25705]
[1753653842903,1.2612,3841.2,3841.1,1.25713]
[1753653843204,21.7769,3841.2,3841.1,2.35643]
[1753653843406,3.2078,3841.4,3841.3,0.5205]
[1753653843714,21.84249,3841.4,3841.3,1.2571]
[1753653844111,22.3103,3841.4,3841.3,2.3564]
[1753653844504,0.2547,3841.4,3841.3,2.3564]
[1753653844705,0.1706,3841.8,3841.7,1.25705]
[1753653844900,22.04677599,3841.8,3841.7,2.35635]
[1753653845106,21.317,3841.8,3841.7,2.35635]
[1753653845309,0.52038,3842.2,3841.8,1.25703]
[1753653845508,1.14888,3842.2,3842.1,2.35629]
[1753653845708,23.83128194,3842.2,3842.1,2.35629]
[1753653846314,0.72970194,3842.2,3842.1,2.35629]
[1753653846514,21.314,3842.2,3842.1,2.35629]
[1753653846818,22.04366136,3842.2,3842.1,2.35629]
[1753653847115,21.314,3842.2,3842.1,2.35629]
[1753653847317,37.489,3842.3,3842.2,2.35628]
[1753653847613,3.2078,3842.7,3842.6,1.25693]
[1753653847809,3.93739384,3842.7,3842.6,2.35623]
[1753653848009,20.79809384,3842.7,3842.6,1.61963]
[1753653848214,42.09987844,3843.4,3843.3,0.52023]
[1753653848515,60.20807844,3843.4,3843.3,1.17893]
[1753653848707,60.63327844,3843.4,3843.3,1.17893]
[1753653848908,59.2322,3843.4,3843.3,1.17893]
[1753653849106,62.44,3843.4,3843.3,1.17893]
[1753653849408,59.2282,3843.4,3843.3,1.17893]
[1753653849706,58.799,3843.4,3843.3,1.17893]
[1753653850116,58.796,3843.4,3843.3,1.17893]
[1753653850313,58.796,3843.4,3843.3,1.62193]
[1753653850511,59.2212,3843.4,3843.3,1.62193]
[1753653851116,58.793,3843.4,3843.3,1.62193]
[1753653852011,37.491,3843.4,3843.3,1.62193]
[1753653852210,21.29,3843.4,3843.3,1.62193]
[1753653852609,1e-05,3843.9,3843.8,1.62186]
[1753653852811,22.69907844,3844.4,3844.3,0.5201]
[1753653853010,0.4252,3844.8,3844.4,1.95891]
[1753653853210,0.77782863,3845.1,3845.0,0.8976]
[1753653853416,1.86392472,3845.8,3845.4,0.3776]
[1753653853606,2.3072047,3846.2,3845.8,0.51989]
[1753653853912,0.4946,3845.9,3845.8,4.10529]
[1753653854317,0.4946,3845.9,3845.8,3.72769]
[1753653854518,0.2946,3845.8,3845.3,0.3776]
[1753653854714,0.7974,3845.8,3845.2,0.3776]
[1753653854915,0.6668,3844.8,3844.0,3.23485009]
[1753653855216,0.7974,3844.5,3844.4,0.3776]
[1753653855418,0.52011,3844.3,3844.1,0.3776]
[1753653855608,0.52011,3844.3,3843.7,3.2078]
[1753653855813,0.2946,3843.8,3843.1,0.20441573]
[1753653856009,1.31764,3843.2,3843.1,0.20441573]
[1753653856210,23.03524,3843.2,3843.1,0.20441573]
[1753653856518,23.04324,3843.2,3843.1,0.20441573]
[1753653856718,22.2284,3843.2,3842.4,3.2078]
[1753653856912,0.81488,3842.9,3842.8,0.3776]
[1753653857113,0.2946,3842.9,3842.8,0.3776]
[1753653857317,21.95125,3843.2,3842.8,0.3776]
[1753653857511,0.2946,3843.5,3843.0,0.52026]
[1753653857716,0.2946,3843.3,3843.2,0.3776]
[1753653858113,0.52024,3843.2,3842.9,0.89788]
[1753653858309,0.2946,3843.0,3842.5,0.3776]
[1753653858510,0.2946,3842.8,3842.4,0.52035]
[1753653858715,0.6668,3842.5,3842.4,0.89795]
[1753653858916,0.2946,3842.5,3842.4,0.89795]
[1753653859213,21.7206,3843.0,3842.9,0.89788]
[1753653860518,0.2946,3843.0,3842.9,0.89788]
[1753653861113,1.092,3843.0,3842.2,3.2078]
[1753653861419,0.8149,3842.8,3842.2,3.2078]
[1753653861621,1.092,3842.6,3842.4,0.3776]
[1753653861920,1.092,3842.6,3842.5,0.52034]
[1753653862119,1.092,3842.6,3842.5,0.89794]
[1753653862323,0.2946,3842.6,3842.5,0.89794]
[1753653862518,0.7974,3843.1,3843.0,0.89787]
[1753653862519,21.7066,3843.1,3843.0,0.89787]
[1753653862919,22.504,3843.1,3843.0,0.3776]
[1753653863418,22.504,3843.1,3843.0,0.89787]
[1753653864418,21.7066,3843.1,3843.0,0.89787]
[1753653864921,22.504,3843.1,3843.0,0.89787]
[1753653865122,21.93227,3843.1,3843.0,0.52027]
[1753653865422,21.393,3843.3,3842.5,1.30086]
[1753653865623,21.393,3843.3,3843.2,0.52024]
[1753653865824,22.485,3843.3,3843.2,0.52024]
[1753653866625,1.092,3843.2,3843.1,0.52026]
[1753653869528,1.092,3843.2,3843.1,0.94056]
[1753653869726,0.2946,3843.2,3843.1,0.94056]
[1753653869929,21.7072,3843.6,3843.5,0.5202]
[1753653870125,21.7072,3843.6,3843.5,0.9405]
[1753653871127,21.381,3843.6,3843.5,0.9937]
[1753653871342,1.1957,3844.0,3843.9,0.94045]
[1753653871526,22.5747,3844.0,3843.9,0.94045]
[1753653872227,1.1957,3844.0,3843.9,0.94045]
[1753653872429,22.5747,3844.0,3843.9,0.94045]
[1753653872827,0.3262,3844.0,3843.9,0.99365]
[1753653873128,22.5807,3844.0,3843.9,0.52015]
[1753653874229,26.385,3844.0,3842.6,4.50862]
[1753653874426,0.8695,3843.2,3842.7,1.30078]
[1753653874625,21.414,3843.1,3843.0,0.52027]
[1753653874921,0.52033,3842.6,3842.2,3.6281]
[1753653875129,1.1957,3842.3,3842.2,0.52037]
[1753653875330,4.4035,3842.6,3842.5,0.52034]
[1753653875630,3.9767,3842.6,3842.5,1.38734]
[1753653875833,0.3262,3842.6,3842.5,1.38734]
[1753653876231,21.7552,3842.6,3842.5,1.38734]
[1753653876622,21.7532,3842.6,3842.5,1.38734]
[1753653878039,0.3262,3842.6,3842.5,1.38734]
[1753653878425,21.7402,3842.6,3842.5,1.38734]
[1753653880335,21.7342,3842.6,3842.5,1.38734]
[1753653880833,22.6037,3842.6,3842.5,1.38734]
[1753653881033,1.1957,3842.6,3842.5,1.38734]
[1753653881232,22.5887,3842.6,3842.5,1.38734]
[1753653881644,23.72295124,3842.6,3842.5,0.52034]
[1753653881832,0.52039,3842.2,3841.8,0.19261554]
[1753653882030,2.32995124,3841.9,3841.8,0.19261554]
[1753653882236,2.85037124,3841.9,3841.8,0.71304554]
[1753653882635,2.32995124,3841.9,3841.8,0.71304554]
[1753653883035,23.73495124,3841.9,3841.8,0.71304554]
[1753653883227,1.1957,3841.9,3841.8,0.71304554]
[1753653883536,22.5947,3841.9,3841.8,0.71304554]
[1753653884632,25.8025,3841.9,3841.8,0.71304554]
[1753653884831,22.5947,3841.9,3841.8,0.71304554]
[1753653885038,25.8025,3841.9,3841.8,0.71304554]
[1753653885338,22.5947,3841.9,3841.8,0.71304554]
[1753653885529,25.8025,3841.9,3841.8,0.71304554]
[1753653886038,25.7915,3841.9,3841.8,0.71304554]
[1753653887039,26.31192,3841.9,3841.8,0.71304554]
[1753653887238,26.31192,3841.9,3841.8,0.19261554]
[1753653887239,27.44617124,3841.9,3841.8,0.19261554]
[1753653887436,27.44617124,3841.9,3840.6,0.4467]
[1753653887437,0.4427,3841.3,3840.6,0.4467]
[1753653887737,1.71624,3841.1,3841.0,0.52053]
[1753653887929,26.30904,3841.1,3841.0,0.52053]
[1753653888127,0.52058,3840.9,3840.8,0.52055]
[1753653888327,1.71628,3840.9,3840.8,0.52055]
[1753653888841,1.7163,3840.7,3840.6,0.52058]
[1753653889137,23.0993,3840.7,3840.6,0.52058]
[1753653889338,1.71632,3840.6,3840.5,0.5206]
[1753653889530,1.28951,3840.6,3840.5,0.5206]
[1753653889728,1.71631,3840.6,3840.5,0.5206]
[1753653889933,1.1957,3840.6,3840.5,0.5206]
[1753653890333,22.5767,3840.6,3840.5,0.5206]
[1753653890529,0.7689,3840.6,3840.5,1.3876]
[1753653890734,22.1499,3840.6,3840.5,1.3876]
[1753653890940,22.5767,3840.6,3840.5,1.3876]
[1753653892840,21.381,3840.6,3840.5,0.52061]
[1753653893033,22.5767,3840.6,3840.5,0.52061]
[1753653893634,1.1957,3840.6,3840.5,0.52061]
[1753653893847,21.6902,3840.6,3840.5,1.38761]